bitfinex/quotes_BTCUSD_20241010
["timestamp","ask_amount","ask_price","bid_price","bid_amount"]
[1728582635983,0.171336,60120.0,60117.0,0.166341]
[1728582636228,0.171336,60120.0,60118.0,0.16083764]
[1728582636481,0.171336,60120.0,60119.0,0.166336]
[1728582636482,0.005,60120.0,60119.0,0.166336]
[1728582636735,0.005,60120.0,60119.0,0.32877254]
[1728582636997,0.36800307,60120.0,60119.0,0.16243654]
[1728582637237,0.36800307,60120.0,60119.0,0.0015989]
[1728582637492,0.63740307,60120.0,60119.0,0.0015989]
[1728582637749,0.63740307,60120.0,60107.0,0.0507105]
[1728582637750,0.005,60112.0,60107.0,0.0009907]
[1728582638003,0.166367,60108.0,60107.0,0.02587314]
[1728582638251,0.166367,60108.0,60107.0,0.18572008]
[1728582638471,0.166367,60108.0,60107.0,0.16083764]
[1728582638679,0.005,60109.0,60107.0,0.32720564]
[1728582638884,0.171364,60109.0,60108.0,0.16083764]
[1728582639345,0.171364,60109.0,60108.0,0.16249742]
[1728582639346,0.005,60109.0,60108.0,0.16249742]
[1728582639765,0.171364,60109.0,60108.0,0.16249742]
[1728582640244,0.171364,60109.0,60108.0,0.17049742]
[1728582641232,0.63831357,60109.0,60108.0,0.00965978]
[1728582641473,0.71971357,60109.0,60108.0,0.00965978]
[1728582641756,0.63733407,60109.0,60108.0,0.015]
[1728582642443,0.63733407,60109.0,60108.0,0.007]
[1728582642701,0.63733407,60109.0,60108.0,0.012]
[1728582642950,0.63733407,60109.0,60108.0,0.007]
[1728582643219,0.171389,60100.0,60099.0,0.0009931]
[1728582643466,0.176389,60100.0,60099.0,0.16183074]
[1728582643707,0.176389,60100.0,60099.0,0.16083764]
[1728582643940,0.176389,60100.0,60099.0,0.16547231]
[1728582644670,0.176389,60100.0,60099.0,0.16083764]
[1728582645164,0.176389,60100.0,60099.0,0.17247231]
[1728582645419,0.177389,60100.0,60099.0,0.17247231]
[1728582646215,0.177389,60100.0,60099.0,0.18047231]
[1728582647485,0.177389,60100.0,60099.0,0.17583764]
[1728582647726,0.177389,60100.0,60099.0,0.18047231]
[1728582650687,0.177389,60100.0,60099.0,0.17583764]
[1728582650897,0.177389,60100.0,60099.0,0.18047231]
[1728582652066,0.457489,60100.0,60099.0,0.015]
[1728582652569,0.457489,60100.0,60098.0,0.000816]
[1728582652570,0.005,60099.0,60098.0,0.000816]
[1728582652792,0.458092,60099.0,60098.0,0.000816]
[1728582653684,0.459092,60099.0,60098.0,0.000816]
[1728582656077,0.465092,60099.0,60098.0,0.001816]
[1728582656521,0.6134764,60099.0,60098.0,0.001816]
[1728582657841,0.465092,60099.0,60098.0,0.001816]
[1728582658469,0.465092,60099.0,60085.0,0.000817]
[1728582658470,0.176419,60089.0,60085.0,0.000817]
[1728582658684,0.65548907,60089.0,60085.0,0.000817]
[1728582658897,0.183428,60086.0,60085.0,0.000817]
[1728582659338,0.37509807,60086.0,60085.0,0.000817]
[1728582659565,0.72757475,60086.0,60085.0,0.000817]
[1728582660203,0.53590468,60086.0,60085.0,0.000817]
[1728582660416,0.55190468,60086.0,60085.0,0.002817]
[1728582660622,0.38309807,60086.0,60085.0,0.001817]
[1728582660859,0.37509807,60086.0,60085.0,0.000817]
[1728582662343,0.37509807,60086.0,60085.0,0.001817]
[1728582662344,0.38709807,60086.0,60085.0,0.001817]
[1728582662843,1.01487475,60086.0,60085.0,0.001817]
[1728582663059,0.83320468,60086.0,60085.0,0.002817]
[1728582663284,0.82120468,60086.0,60085.0,0.001817]
[1728582663514,0.82120468,60086.0,60085.0,0.002817]
[1728582663515,0.67039807,60086.0,60085.0,0.002817]
[1728582664453,0.66039807,60086.0,60085.0,0.001817]
[1728582664701,0.65039807,60086.0,60085.0,0.000817]
[1728582664941,0.81120468,60086.0,60085.0,0.000817]
[1728582665185,0.65039807,60086.0,60085.0,0.000817]
[1728582665658,0.66239807,60086.0,60085.0,0.001817]
[1728582665916,0.67439807,60086.0,60085.0,0.001817]
[1728582666124,0.66239807,60086.0,60085.0,0.000817]
[1728582666355,0.66039807,60086.0,60085.0,0.001817]
[1728582666796,0.67039807,60086.0,60085.0,0.001817]
[1728582667450,0.75818542,60086.0,60085.0,0.001817]
[1728582668099,0.67039807,60086.0,60085.0,0.001817]
[1728582670533,0.83123571,60086.0,60085.0,0.001817]
[1728582670740,0.67039807,60086.0,60085.0,0.001817]
[1728582672112,0.39509807,60086.0,60085.0,0.001817]
[1728582673331,1.04060578,60086.0,60085.0,0.001817]
[1728582673529,1.00974232,60086.0,60085.0,0.001817]
[1728582673647,1.20141239,60086.0,60085.0,0.001817]
[1728582674524,1.20141239,60086.0,60072.0,0.00012]
[1728582674525,0.480458,60075.0,60074.0,7.8e-07]
[1728582674760,0.93296571,60075.0,60074.0,7.8e-07]
[1728582675014,0.93296571,60075.0,60073.0,0.00146716]
[1728582675015,0.306461,60074.0,60073.0,3.4e-07]
[1728582675264,0.74129864,60074.0,60073.0,3.4e-07]
[1728582676007,0.71829864,60074.0,60073.0,3.4e-07]
[1728582676708,0.73229864,60074.0,60073.0,0.00100034]
[1728582676944,0.74629864,60074.0,60073.0,0.00200034]
[1728582677434,0.78037038,60074.0,60073.0,0.00200034]
[1728582678350,0.464461,60074.0,60073.0,0.00100034]
[1728582678597,0.209461,60074.0,60073.0,0.00100034]
[1728582678826,0.19178988,60074.0,60073.0,0.00100034]
[1728582679322,0.16378988,60074.0,60073.0,3.4e-07]
[1728582679574,0.16578988,60074.0,60073.0,3.4e-07]
[1728582679830,0.18278988,60074.0,60073.0,3.4e-07]
[1728582680350,0.18078988,60074.0,60073.0,3.4e-07]
[1728582680844,0.18278988,60074.0,60073.0,3.4e-07]
[1728582681107,0.18078988,60074.0,60073.0,3.4e-07]
[1728582681381,0.17178988,60074.0,60073.0,0.00081634]
[1728582681604,0.17678988,60074.0,60073.0,0.00081634]
[1728582682088,0.20285983,60074.0,60073.0,0.00081634]
[1728582682557,0.19685983,60074.0,60073.0,0.00081634]
[1728582682814,0.58933481,60074.0,60073.0,0.00081634]
[1728582683071,0.34038662,60074.0,60073.0,0.00081634]
[1728582686033,0.60508662,60074.0,60073.0,0.00081634]
[1728582686570,0.77092426,60074.0,60073.0,0.00081634]
[1728582686812,0.89392426,60074.0,60073.0,0.00081634]
[1728582687067,0.012,60073.0,60072.0,3.4e-07]
[1728582687321,0.62310825,60073.0,60072.0,3.4e-07]
[1728582687568,0.62310825,60073.0,60072.0,0.0085832]
[1728582688302,0.62310825,60073.0,60066.0,2.0]
[1728582688303,0.573866,60072.0,60071.0,2e-07]
[1728582688552,1.08718032,60072.0,60071.0,2e-07]
[1728582689033,0.73470364,60072.0,60071.0,2e-07]
[1728582689266,0.73470364,60072.0,60071.0,0.00794029]
[1728582689512,0.73870364,60072.0,60071.0,2e-07]
[1728582689983,0.73870364,60072.0,60071.0,0.00794029]
[1728582690213,0.73870364,60072.0,60071.0,2e-07]
[1728582690456,0.73870364,60072.0,60071.0,0.00794029]
[1728582690457,0.89951025,60072.0,60071.0,0.00794029]
[1728582690691,0.73870364,60072.0,60071.0,2e-07]
[1728582690924,0.73870364,60072.0,60071.0,0.00794029]
[1728582691155,0.75270364,60072.0,60071.0,0.00126017]
[1728582691398,0.75270364,60072.0,60071.0,1.7e-07]
[1728582691661,0.75270364,60072.0,60071.0,0.00094502]
[1728582691900,0.191475,60069.0,60066.0,2.0]
[1728582692138,0.54398271,60069.0,60066.0,2.0]
[1728582692854,0.54898271,60069.0,60066.0,2.0]
[1728582693088,0.56298271,60069.0,60066.0,2.0]
[1728582694557,0.56298271,60069.0,60068.0,0.00177864]
[1728582695030,0.57698271,60069.0,60068.0,0.00177864]
[1728582695505,0.73778932,60069.0,60068.0,0.00177864]
[1728582697878,0.39314507,60069.0,60068.0,0.00177864]
[1728582700295,0.8029309,60069.0,60068.0,0.00177864]
[1728582700506,0.55398271,60069.0,60068.0,0.00177864]
[1728582702761,0.57698271,60069.0,60068.0,0.00177864]
[1728582703891,1.00985939,60069.0,60068.0,0.000817]
[1728582705487,0.81818932,60069.0,60068.0,0.000817]
[1728582705742,0.65738271,60069.0,60068.0,0.000817]
[1728582706415,0.39314507,60069.0,60068.0,0.000817]
[1728582706852,0.39314507,60069.0,60068.0,0.00993947]
[1728582707104,0.39314507,60069.0,60068.0,0.000817]
[1728582707325,0.39314507,60069.0,60068.0,0.00993947]
[1728582707544,0.55395168,60069.0,60068.0,0.000817]
[1728582707765,0.55395168,60069.0,60068.0,0.00993947]
[1728582707993,0.55395168,60069.0,60068.0,0.000817]
[1728582708212,0.39314507,60069.0,60068.0,0.00897783]
[1728582709149,0.57698271,60069.0,60068.0,0.00897783]
[1728582709382,0.17148,60067.0,60066.0,1.82990944]
[1728582709610,0.45731764,60067.0,60066.0,1.69672144]
[1728582711195,0.45731764,60067.0,60066.0,1.69769417]
[1728582711629,0.48131764,60067.0,60066.0,1.69769417]
[1728582712317,1.15831764,60067.0,60066.0,1.69769417]
[1728582712786,1.18131764,60067.0,60066.0,1.69769417]
[1728582712998,1.6219359,60067.0,60066.0,1.69769417]
[1728582713226,1.53379432,60067.0,60066.0,1.69769417]
[1728582713481,1.18131764,60067.0,60066.0,1.69769417]
[1728582713701,0.67298771,60067.0,60066.0,1.69769417]
[1728582714957,0.67298771,60067.0,60066.0,1.05738408]
[1728582715170,1.37298771,60067.0,60066.0,1.05738408]
[1728582715600,1.6219359,60067.0,60066.0,0.69297058]
[1728582715828,1.6219359,60067.0,60061.0,0.0002]
[1728582715829,0.004,60062.0,60061.0,0.0002]
[1728582716069,0.004,60062.0,60050.0,0.01434]
[1728582716070,0.196522,60052.0,60050.0,0.01434]
[1728582716288,1.01539978,60052.0,60050.0,0.01434]
[1728582716497,0.63005964,60052.0,60050.0,0.01434]
[1728582716715,0.63005964,60052.0,60050.0,2.4e-07]
[1728582716716,0.191525,60051.0,60050.0,2.4e-07]
[1728582717146,1.05236264,60051.0,60050.0,2.4e-07]
[1728582717604,1.05236264,60051.0,60022.0,0.05272645]
[1728582717605,0.005,60029.0,60022.0,0.05272645]
[1728582717823,0.005,60029.0,60021.0,0.0002]
[1728582717824,0.173586,60029.0,60021.0,0.0002]
[1728582718049,0.36525607,60029.0,60028.0,0.02243915]
[1728582718264,0.36525607,60029.0,60028.0,0.004]
[1728582718265,0.173586,60029.0,60028.0,0.004]
[1728582718500,0.36525607,60029.0,60028.0,0.004]
[1728582718712,0.52082301,60029.0,60028.0,0.004]
[1728582719141,1.03060884,60029.0,60028.0,0.004]
[1728582719369,0.65282301,60029.0,60028.0,0.004]
[1728582719587,0.64909371,60029.0,60028.0,0.004]
[1728582719815,0.284586,60029.0,60028.0,0.004]
[1728582720039,0.9090419,60029.0,60028.0,0.004]
[1728582720276,0.66009371,60029.0,60028.0,0.004]
[1728582720498,0.173591,60027.0,60021.0,0.0002]
[1728582720710,0.196605,60022.0,60021.0,0.0002]
[1728582720932,0.173605,60022.0,60021.0,0.0002]
[1728582721203,0.64911271,60022.0,60021.0,0.0002]
[1728582721428,0.36527507,60022.0,60021.0,0.0002]
[1728582721857,0.36327507,60022.0,60021.0,0.0002]
[1728582722577,0.36527507,60022.0,60021.0,0.0002]
[1728582722832,0.37927507,60022.0,60021.0,0.0002]
[1728582723055,0.171608,60021.0,60020.0,0.0018]
[1728582724663,0.181608,60021.0,60020.0,0.0018]
[1728582724931,0.76111587,60021.0,60020.0,0.0018]
[1728582725153,0.76111587,60021.0,60013.0,0.01]
[1728582725154,0.173627,60014.0,60013.0,0.01]
[1728582725395,0.55696714,60014.0,60013.0,0.01]
[1728582726304,0.37129707,60014.0,60013.0,0.01]
[1728582726520,0.56496714,60014.0,60013.0,0.01]
[1728582726732,0.37129707,60014.0,60013.0,0.005]
[1728582726948,0.37129707,60014.0,60013.0,0.01]
[1728582727164,0.37929707,60014.0,60013.0,0.005]
[1728582727418,0.70886815,60014.0,60013.0,0.005]
[1728582727598,0.36331107,60009.0,60008.0,0.24205287]
[1728582728246,0.36531107,60009.0,60008.0,0.24205287]
[1728582728935,0.173644,60008.0,60007.0,0.000816]
[1728582729164,0.173644,60008.0,60005.0,0.000316]
[1728582729165,0.16665,60006.0,60005.0,0.000316]
[1728582729385,0.17365,60006.0,60005.0,0.000316]
[1728582730258,0.17365,60006.0,60004.0,0.43597]
[1728582730259,0.173652,60005.0,60004.0,0.43597]
[1728582730494,0.171652,60005.0,60004.0,0.43597]
[1728582730728,0.173652,60005.0,60004.0,0.43597]
[1728582731245,0.33448964,60005.0,60004.0,0.43597]
[1728582731452,0.173652,60005.0,60004.0,0.43597]
[1728582731678,0.187652,60005.0,60004.0,0.43597]
[1728582732157,0.195652,60005.0,60004.0,0.43597]
[1728582732387,0.187652,60005.0,60004.0,0.43597]
[1728582732619,0.33957231,60005.0,60004.0,0.43597]
[1728582732845,0.201652,60005.0,60004.0,0.43597]
[1728582733055,0.187652,60005.0,60004.0,0.43597]
[1728582733302,0.187652,60005.0,60004.0,0.43045461]
[1728582733516,0.36248964,60005.0,60004.0,0.43045461]
[1728582733763,0.201652,60005.0,60004.0,0.43045461]
[1728582734020,0.32697231,60005.0,60004.0,0.44939221]
[1728582734462,0.32497231,60005.0,60004.0,0.44939221]
[1728582734922,0.199652,60005.0,60004.0,0.44939221]
[1728582735138,0.185652,60005.0,60004.0,0.44939221]
[1728582735355,0.199652,60005.0,60004.0,0.44939221]
[1728582735616,0.38348964,60005.0,60004.0,0.44939221]
[1728582735833,0.55428964,60005.0,60004.0,0.28273721]
[1728582736045,0.72909625,60005.0,60004.0,0.28273721]
[1728582736265,0.91515056,60005.0,60004.0,0.28273721]
[1728582736527,0.63454395,60005.0,60004.0,0.28273721]
[1728582736962,0.64854395,60005.0,60004.0,0.28273721]
[1728582737839,0.38770631,60005.0,60004.0,0.28273721]
[1728582738326,0.19403624,60005.0,60004.0,0.28273721]
[1728582738554,0.44498443,60005.0,60004.0,0.28273721]
[1728582738774,0.78114104,60005.0,60004.0,0.28273721]
[1728582738990,0.67903049,60005.0,60004.0,0.28273721]
[1728582739209,0.66503049,60005.0,60004.0,0.28273721]
[1728582739450,0.77503049,60005.0,60004.0,0.28273721]
[1728582739668,0.79803049,60005.0,60004.0,0.28273721]
[1728582739898,0.60919285,60005.0,60004.0,0.28273721]
[1728582740151,0.47870631,60005.0,60004.0,0.28273721]
[1728582740548,0.99447295,60005.0,60004.0,0.28273721]
[1728582740781,0.74052476,60005.0,60004.0,0.28273721]
[1728582740991,1.00347295,60005.0,60004.0,0.28355421]
[1728582741238,1.00347295,60005.0,59990.0,0.01113]
[1728582741239,1.00347295,60005.0,59892.0,0.0914]
[1728582741240,0.05,60000.0,59892.0,0.0914]
[1728582741509,0.05,60000.0,59916.0,0.3338]
[1728582741510,0.28865088,59929.0,59916.0,0.3338]
[1728582741742,0.28865088,59929.0,59917.0,1.710166]
[1728582741743,0.28865088,59923.0,59917.0,1.710166]
[1728582741968,0.28865088,59918.0,59892.0,0.33393]
[1728582742195,0.28865088,59918.0,59844.0,0.25576159]
[1728582742196,0.28865088,59898.0,59897.0,0.005]
[1728582742413,0.28865088,59909.0,59900.0,0.005]
[1728582742639,0.24894819,59905.0,59903.0,0.16083764]
[1728582742884,0.24894819,59911.0,59907.0,0.005]
[1728582743129,0.24894819,59911.0,59903.0,0.16083764]
[1728582743130,0.28865088,59908.0,59905.0,0.005]
[1728582743385,0.166945,59900.0,59893.0,0.005]
[1728582743619,0.01014,59903.0,59896.0,0.005]
[1728582743856,0.01014,59903.0,59901.0,0.005]
[1728582744116,0.01014,59903.0,59902.0,0.17527703]
[1728582744365,0.01014,59903.0,59902.0,0.171939]
[1728582744613,0.003,59909.0,59903.0,0.171934]
[1728582744846,0.24894819,59908.0,59905.0,0.17193]
[1728582745101,0.003,59909.0,59908.0,0.005]
[1728582745364,0.24894819,59914.0,59903.0,0.28865088]
[1728582745365,0.005,59913.0,59904.0,0.1]
[1728582745615,0.166915,59911.0,59907.0,0.00333803]
[1728582745864,0.01014,59906.0,59904.0,0.15691509]
[1728582746122,0.01014,59906.0,59905.0,0.16083764]
[1728582746841,0.166928,59906.0,59905.0,0.16083764]
[1728582747127,0.166922,59908.0,59905.0,0.16083764]
[1728582747363,0.166922,59908.0,59895.0,0.333915]
[1728582747364,255.40548085,59800.0,59799.0,1.52665726]
[1728582747629,245.67208163,59800.0,59799.0,11.57070634]
[1728582747884,241.71468939,59800.0,59799.0,6.65089436]
[1728582748150,233.98019829,59800.0,59799.0,5.69810876]
[1728582748399,227.89448723,59800.0,59799.0,5.9337986]
[1728582748631,221.58380816,59800.0,59799.0,5.90232433]
[1728582748856,220.44078555,59800.0,59799.0,6.10836519]
[1728582749128,218.37506491,59800.0,59799.0,6.08025303]
[1728582749340,215.94858173,59800.0,59799.0,4.48186466]
[1728582749570,214.1070109,59800.0,59799.0,4.48186466]
[1728582749802,210.8354807,59800.0,59799.0,4.48186466]
[1728582750053,208.49658787,59800.0,59799.0,4.48186466]
[1728582750288,208.33458787,59800.0,59799.0,2.38671351]
[1728582750518,208.14516483,59800.0,59799.0,1.88917318]
[1728582750795,207.85481658,59800.0,59799.0,1.10582318]
[1728582751034,207.84070122,59800.0,59799.0,0.33554993]
[1728582751274,207.84170122,59800.0,59799.0,0.26868893]
[1728582751512,207.84070122,59800.0,59799.0,0.167226]
[1728582752192,207.84170122,59800.0,59799.0,0.36639345]
[1728582752465,207.84070122,59800.0,59799.0,0.36721045]
[1728582752720,207.84170122,59800.0,59799.0,0.46351045]
[1728582753043,207.77722502,59800.0,59799.0,0.46351045]
[1728582753209,203.60470711,59800.0,59799.0,0.54565046]
[1728582753475,202.60480711,59800.0,59799.0,0.54565046]
[1728582753737,201.60490711,59800.0,59799.0,0.54565046]
[1728582754224,201.60490711,59800.0,59799.0,0.54065046]
[1728582754463,201.60490711,59800.0,59799.0,0.54115046]
[1728582754699,201.60590711,59800.0,59799.0,0.54115046]
[1728582755226,201.60590711,59800.0,59791.0,0.00049019]
[1728582755469,201.60590711,59800.0,59756.0,0.25022908]
[1728582755470,201.60590711,59800.0,59715.0,0.0839059]
[1728582755471,0.005,59797.0,59715.0,0.0839059]
[1728582755707,0.24894819,59799.0,59768.0,0.167313]
[1728582755708,0.24894819,59782.0,59768.0,0.167313]
[1728582755944,0.24894819,59782.0,59741.0,0.03835]
[1728582755945,0.24894819,59775.0,59738.0,0.005]
[1728582756176,0.24894819,59775.0,59769.0,0.01924775]
[1728582756403,0.24894819,59775.0,59733.0,0.03457477]
[1728582756404,0.24894819,59775.0,59745.0,0.334752]
[1728582756638,0.24894819,59775.0,59746.0,1.013926]
[1728582756873,0.0824,59777.0,59769.0,0.334616]
[1728582756874,0.24894819,59774.0,59769.0,0.334616]
[1728582757107,0.24894819,59774.0,59765.0,0.167322]
[1728582757108,0.24894819,59766.0,59765.0,0.167322]
[1728582757336,0.0824,59777.0,59776.0,0.167291]
[1728582757556,0.0824,59777.0,59753.0,0.06918896]
[1728582757557,0.24894819,59772.0,59753.0,0.334706]
[1728582757778,0.0824,59777.0,59754.0,0.192068]
[1728582758017,0.0824,59777.0,59747.0,3.079162]
[1728582758018,0.24894819,59771.0,59747.0,3.079162]
[1728582758266,0.24894819,59771.0,59748.0,2.205655]
[1728582758267,0.24894819,59753.0,59748.0,2.205655]
[1728582758489,0.24894819,59761.0,59749.0,0.00334575]
[1728582758715,0.24894819,59771.0,59751.0,0.334721]
[1728582758949,0.16083764,59776.0,59751.0,0.266221]
[1728582759182,0.0824,59777.0,59770.0,0.167308]
[1728582759183,0.24894819,59771.0,59770.0,0.167308]
[1728582759457,0.24894819,59771.0,59752.0,0.01620537]
[1728582759698,0.0874,59777.0,59752.0,0.01494813]
[1728582759699,0.40978583,59770.0,59752.0,0.01494813]
[1728582759934,0.40978583,59770.0,59758.0,0.16734]
[1728582759935,0.24894819,59767.0,59758.0,0.16734]
[1728582760166,0.24894819,59766.0,59763.0,0.167325]
[1728582760405,0.24894819,59775.0,59759.0,0.01270027]
[1728582760637,0.24894819,59775.0,59774.0,0.167296]
[1728582761086,0.24894819,59775.0,59774.0,0.17993418]
[1728582761312,0.0824,59777.0,59775.0,0.334588]
[1728582761538,0.0774,59777.0,59776.0,0.167291]
[1728582761766,0.0774,59777.0,59776.0,0.17992091]
[1728582761989,0.24894819,59787.0,59776.0,0.34721191]
[1728582762241,0.24894819,59787.0,59786.0,0.167263]
[1728582762484,0.24894819,59787.0,59776.0,0.01262991]
[1728582762713,0.24894819,59793.0,59780.0,0.167278]
[1728582762932,0.1823,59795.0,59781.0,0.167276]
[1728582763168,0.1823,59795.0,59781.0,0.17488522]
[1728582763402,0.1823,59795.0,59781.0,0.00760922]
[1728582763635,0.24894819,59799.0,59783.0,0.1]
[1728582763852,0.24894819,59799.0,59788.0,0.334511]
[1728582764078,0.24894819,59799.0,59792.0,0.334491]
[1728582764323,0.24894819,59806.0,59799.0,0.167226]
[1728582764539,0.1823,59812.0,59799.0,0.566194]
[1728582764763,0.24894819,59809.0,59799.0,0.477637]
[1728582764988,0.24894819,59809.0,59799.0,0.500637]
[1728582764989,198.60520711,59800.0,59799.0,0.500637]
[1728582765210,197.63014711,59800.0,59799.0,0.500637]
[1728582765427,197.62514711,59800.0,59799.0,0.65647464]
[1728582766574,197.62014711,59800.0,59799.0,0.65647464]
[1728582768248,197.57053486,59800.0,59799.0,0.65647464]
[1728582768482,197.56283712,59800.0,59799.0,0.65647464]
[1728582769420,197.56283712,59800.0,59799.0,0.26083764]
[1728582769651,197.56283712,59800.0,59799.0,0.501442]
[1728582769902,197.56283712,59800.0,59799.0,0.121863]
[1728582770131,197.56283712,59800.0,59799.0,0.16083764]
[1728582770605,197.56283712,59800.0,59799.0,1.41742464]
[1728582770876,197.56283712,59800.0,59799.0,3.24787848]
[1728582771339,197.56283712,59800.0,59799.0,3.34787848]
[1728582772070,197.56283712,59800.0,59799.0,3.37087848]
[1728582772956,197.56283712,59800.0,59799.0,3.37097848]
[1728582774085,197.56283712,59800.0,59799.0,1.92341948]
[1728582774308,197.56283712,59800.0,59799.0,1.89024748]
[1728582775437,197.56283712,59800.0,59799.0,1.99024748]
[1728582776153,196.74435731,59800.0,59799.0,0.46656148]
[1728582776620,196.74435731,59800.0,59799.0,3.37097848]
[1728582777730,196.74435731,59800.0,59799.0,3.54719848]
[1728582780071,196.74435731,59800.0,59799.0,3.64719848]
[1728582780564,196.74435731,59800.0,59799.0,2.72276164]
[1728582780826,196.74435731,59800.0,59799.0,2.313201]
[1728582781112,196.74435731,59800.0,59799.0,0.73658804]
[1728582781341,196.74435731,59800.0,59799.0,0.69812264]
[1728582781829,196.74435731,59800.0,59799.0,0.73658804]
[1728582782302,196.74435731,59800.0,59799.0,0.91198804]
[1728582782562,196.74435731,59800.0,59799.0,1.03498804]
[1728582782563,195.9258775,59800.0,59799.0,1.03498804]
[1728582782829,195.9258775,59800.0,59799.0,1.13508804]
[1728582782830,195.72156193,59800.0,59799.0,1.13508804]
[1728582783100,195.38672734,59800.0,59799.0,0.86594904]
[1728582783368,195.05188225,59800.0,59799.0,0.86594904]
[1728582783756,194.6518419,59800.0,59799.0,0.59024904]
[1728582783757,194.6518419,59800.0,59799.0,0.58974904]
[1728582783958,194.6518419,59800.0,59799.0,3.47106604]
[1728582783959,194.63585253,59800.0,59799.0,3.47106604]
[1728582784165,194.63585253,59800.0,59799.0,3.47086604]
[1728582784375,194.61498986,59800.0,59799.0,3.47066604]
[1728582784537,194.61498986,59800.0,59799.0,3.69724536]
[1728582784776,194.61498986,59800.0,59799.0,3.52184536]
[1728582785031,194.61498986,59800.0,59799.0,3.35019583]
[1728582785265,194.61498986,59800.0,59799.0,3.34999583]
[1728582785535,194.61498986,59800.0,59799.0,3.34949583]
[1728582785999,193.85003506,59800.0,59799.0,3.34919583]
[1728582786222,193.79651005,59800.0,59799.0,3.37159583]
[1728582786485,193.79651005,59800.0,59799.0,3.37149583]
[1728582786749,193.79651005,59800.0,59799.0,3.74699583]
[1728582786750,193.25445358,59800.0,59799.0,3.74699583]
[1728582787013,192.79550853,59800.0,59799.0,0.86507883]
[1728582787252,192.32619364,59800.0,59799.0,0.91601261]
[1728582787534,191.93977056,59800.0,59799.0,0.82577928]
[1728582787749,189.95580034,59800.0,59799.0,0.69871742]
[1728582787981,189.56220763,59800.0,59799.0,1.00027216]
[1728582788201,189.35180263,59800.0,59799.0,0.87683145]
[1728582788441,189.25695986,59800.0,59799.0,0.87683145]
[1728582788659,188.19413697,59800.0,59799.0,3.54616675]
[1728582789104,188.19413697,59800.0,59799.0,3.42283345]
[1728582789357,187.98659434,59800.0,59799.0,3.3711513]
[1728582789618,187.47941068,59800.0,59799.0,0.8251493]
[1728582790153,187.47941068,59800.0,59799.0,0.8264493]
[1728582790383,187.47941068,59800.0,59799.0,0.7263493]
[1728582790632,187.46926692,59800.0,59799.0,0.8496826]
[1728582790873,187.34356197,59800.0,59799.0,0.7596993]
[1728582791103,186.64412731,59800.0,59799.0,0.7263493]
[1728582791332,186.64412731,59800.0,59799.0,0.7250493]
[1728582791571,186.64412731,59800.0,59799.0,1.4750493]
[1728582791798,186.14194365,59800.0,59799.0,1.2250493]
[1728582792050,186.14194365,59800.0,59799.0,0.7020493]
[1728582792289,186.14194365,59800.0,59799.0,0.42687928]
[1728582792506,186.14194365,59800.0,59799.0,2.79563028]
[1728582792942,186.14194365,59800.0,59799.0,2.78532328]
[1728582793198,186.14194365,59800.0,59799.0,2.45067035]
[1728582793420,186.13694365,59800.0,59799.0,2.61789635]
[1728582794077,186.13694365,59800.0,59799.0,2.71789635]
[1728582794536,186.13694365,59800.0,59799.0,1.13764635]
[1728582794958,186.18711088,59800.0,59799.0,1.13764635]
[1728582795172,186.18711088,59800.0,59799.0,1.1793353]
[1728582795415,186.23727811,59800.0,59799.0,1.13764635]
[1728582795839,186.23727811,59800.0,59799.0,1.23764635]
[1728582798273,186.23727811,59800.0,59799.0,1.2793353]
[1728582798496,186.23727811,59800.0,59799.0,1.23764635]
[1728582798712,186.23727811,59800.0,59799.0,0.00289564]
[1728582798932,0.005,59792.0,59778.0,0.167283]
[1728582799145,0.005,59792.0,59782.0,0.0028956]
[1728582799388,0.005,59792.0,59784.0,0.167266]
[1728582799597,0.24894819,59799.0,59789.0,0.167253]
[1728582799808,0.005,59791.0,59789.0,0.16083764]
[1728582800027,0.005,59791.0,59790.0,0.177756]
[1728582800236,0.005,59795.0,59790.0,0.34927655]
[1728582800459,0.24894819,59799.0,59791.0,1.06126864]
[1728582800681,0.24894819,59799.0,59792.0,0.942928]
[1728582800938,0.005,59797.0,59793.0,0.307334]
[1728582801159,0.005,59797.0,59783.0,0.1]
[1728582801160,0.005,59791.0,59745.0,0.25]
[1728582801401,0.005,59787.0,59783.0,0.55008164]
[1728582801622,0.25394819,59784.0,59783.0,0.01074593]
[1728582801870,0.25394819,59784.0,59776.0,0.00251]
[1728582801871,0.005,59777.0,59776.0,0.00251]
[1728582802312,0.005,59779.0,59760.0,0.00289561]
[1728582802313,0.005,59766.0,59760.0,0.00289561]
[1728582802526,0.005,59763.0,59760.0,0.00289561]
[1728582802733,0.005,59759.0,59758.0,0.00255]
[1728582803667,0.005,59759.0,59758.0,0.16338764]
[1728582803892,0.24894819,59774.0,59758.0,0.16338764]
[1728582803893,0.005,59763.0,59758.0,0.16338764]
[1728582804120,0.25394819,59765.0,59759.0,0.16083764]
[1728582804357,0.005,59761.0,59759.0,0.93728164]
[1728582804597,0.005,59765.0,59760.0,0.687673]
[1728582804835,0.24894819,59774.0,59761.0,0.16083764]
[1728582804836,0.005,59762.0,59761.0,0.16083764]
[1728582805044,0.24894819,59774.0,59760.0,0.687673]
[1728582805045,0.005,59761.0,59760.0,0.16083764]
[1728582805695,0.005,59766.0,59760.0,0.16083764]
[1728582805939,0.005,59760.0,59758.0,0.00255]
[1728582806162,0.005,59759.0,59758.0,0.00255]
[1728582808621,0.005,59759.0,59758.0,0.01206698]
[1728582808835,0.005,59761.0,59758.0,0.16338764]
[1728582809057,0.25394819,59759.0,59758.0,0.17290462]
[1728582809278,0.005,59759.0,59758.0,0.01206698]
[1728582809932,0.005,59759.0,59758.0,0.17290462]
[1728582810580,0.005,59759.0,59758.0,0.01206698]
[1728582810875,0.007,59759.0,59758.0,0.01373162]
[1728582811125,0.33817564,59759.0,59758.0,0.01373162]
[1728582811571,0.34017564,59759.0,59758.0,0.00255]
[1728582811796,0.33817564,59759.0,59758.0,0.00255]
[1728582812229,0.33817564,59759.0,59758.0,0.003365]
[1728582812473,0.58712383,59759.0,59758.0,0.003365]
[1728582812698,0.34017564,59759.0,59758.0,0.003365]
[1728582813134,0.58912383,59759.0,59758.0,0.003365]
[1728582813355,0.34017564,59759.0,59758.0,0.003365]
[1728582814252,0.69007409,59759.0,59758.0,0.003365]
[1728582814471,0.36817564,59759.0,59758.0,1e-06]
[1728582814758,0.12083764,59759.0,59758.0,1e-06]
[1728582814997,0.002,59773.0,59748.0,0.167368]